bitfinex/quotes_BTCUSD_20241009
["timestamp","ask_amount","ask_price","bid_price","bid_amount"]
[1728507442662,0.002,60549.0,60542.0,0.001632]
[1728507442946,0.43707816,60544.0,60542.0,0.001632]
[1728507443149,0.50970864,60543.0,60542.0,0.001632]
[1728507443364,0.51170864,60543.0,60542.0,0.001632]
[1728507443601,0.54301366,60543.0,60542.0,0.001632]
[1728507444035,0.006,60543.0,60542.0,0.001632]
[1728507444276,0.0151884,60543.0,60542.0,0.001632]
[1728507444686,0.1803594,60543.0,60542.0,0.002632]
[1728507444896,0.18036042,60543.0,60542.0,0.002632]
[1728507445103,0.34319806,60543.0,60542.0,0.002632]
[1728507446152,0.36851101,60543.0,60542.0,0.002632]
[1728507446360,0.36851472,60543.0,60542.0,0.001632]
[1728507446575,0.19036042,60543.0,60542.0,0.002632]
[1728507446786,0.02318942,60543.0,60542.0,0.002632]
[1728507446995,0.01518942,60543.0,60542.0,0.166806]
[1728507447546,0.02318942,60543.0,60542.0,0.167806]
[1728507447924,0.01518942,60543.0,60542.0,0.166806]
[1728507448130,0.01518942,60543.0,60542.0,0.001632]
[1728507448341,0.02318942,60543.0,60542.0,0.002632]
[1728507448592,0.19036042,60543.0,60542.0,0.002632]
[1728507448819,0.41206726,60543.0,60542.0,0.002632]
[1728507449053,0.35619806,60543.0,60542.0,0.002632]
[1728507449257,0.72063404,60543.0,60542.0,0.002632]
[1728507449485,0.72063404,60543.0,60513.0,0.24778644]
[1728507449486,0.167204,60531.0,60513.0,0.24778644]
[1728507449696,0.34823106,60531.0,60513.0,0.24778644]
[1728507449917,0.34823106,60531.0,60530.0,0.001632]
[1728507449918,0.42113271,60531.0,60530.0,0.001632]
[1728507450132,0.37254606,60531.0,60530.0,0.001632]
[1728507450355,0.64905651,60531.0,60530.0,0.001632]
[1728507450561,0.5518832,60531.0,60530.0,0.001632]
[1728507450771,0.005,60526.0,60513.0,0.24778644]
[1728507450958,0.99563822,60526.0,60513.0,0.24778644]
[1728507451435,1.06845295,60526.0,60513.0,0.24778644]
[1728507451654,1.06345295,60526.0,60513.0,0.24778644]
[1728507451869,0.39072242,60526.0,60513.0,0.24778644]
[1728507452093,0.03950442,60526.0,60521.0,0.16523]
[1728507452302,0.02528725,60527.0,60523.0,0.165225]
[1728507452513,0.330402,60533.0,60514.0,0.330499]
[1728507452514,0.002,60529.0,60514.0,0.330499]
[1728507452722,0.165218,60526.0,60513.0,0.24778644]
[1728507452935,0.33105564,60526.0,60513.0,0.24778644]
[1728507453146,0.35634289,60526.0,60513.0,0.24778644]
[1728507453367,0.34822799,60526.0,60513.0,0.24778644]
[1728507454054,0.60432916,60514.0,60513.0,0.24778644]
[1728507454275,0.80460255,60514.0,60513.0,0.24778644]
[1728507454691,0.80460255,60514.0,60507.0,0.00259]
[1728507454692,0.167267,60508.0,60507.0,0.00259]
[1728507454913,0.78035515,60508.0,60507.0,0.00259]
[1728507455166,0.80459501,60508.0,60507.0,0.00259]
[1728507455391,0.80456888,60508.0,60507.0,0.00259]
[1728507456049,0.20465308,60508.0,60507.0,0.00259]
[1728507456262,0.01514849,60508.0,60507.0,0.00259]
[1728507456472,0.002,60513.0,60507.0,0.00259]
[1728507456681,0.01512952,60512.0,60508.0,0.165266]
[1728507456913,0.01512952,60511.0,60508.0,0.165266]
[1728507457119,0.002,60516.0,60508.0,0.330534]
[1728507457120,0.165248,60515.0,60508.0,0.330534]
[1728507457337,0.002,60514.0,60507.0,0.00259]
[1728507457546,0.165267,60508.0,60507.0,0.00259]
[1728507458214,0.002,60509.0,60507.0,0.00259]
[1728507458425,0.32810464,60508.0,60507.0,0.00259]
[1728507458661,0.34155444,60508.0,60507.0,0.00259]
[1728507458877,0.172289,60500.0,60499.0,0.001632]
[1728507459134,0.8874337,60500.0,60499.0,0.001632]
[1728507459358,0.8874337,60500.0,60489.0,0.00272]
[1728507459359,0.172311,60492.0,60489.0,0.00272]
[1728507459584,0.35234768,60492.0,60489.0,0.00272]
[1728507459781,0.19151004,60492.0,60489.0,0.00272]
[1728507459993,0.18951004,60492.0,60489.0,0.00272]
[1728507460227,0.165316,60490.0,60489.0,0.00272]
[1728507460438,0.32815364,60490.0,60489.0,0.00272]
[1728507460860,0.35718337,60490.0,60489.0,0.00272]
[1728507461727,0.35715882,60490.0,60489.0,0.00272]
[1728507462361,0.37115882,60490.0,60489.0,0.00372]
[1728507462606,0.36615882,60490.0,60489.0,0.00372]
[1728507463079,0.19132118,60490.0,60489.0,0.00272]
[1728507463294,0.34203364,60490.0,60489.0,0.00372]
[1728507463718,0.32803364,60490.0,60489.0,0.00272]
[1728507464676,0.167338,60482.0,60480.0,0.001632]
[1728507464890,0.32817564,60482.0,60480.0,0.001632]
[1728507465129,0.35325855,60482.0,60480.0,0.001632]
[1728507465336,0.32817564,60482.0,60480.0,0.001632]
[1728507465537,0.32534059,60482.0,60480.0,0.001632]
[1728507466649,0.17850295,60482.0,60481.0,0.002632]
[1728507467272,0.03907246,60482.0,60481.0,0.002632]
[1728507467483,0.179338,60482.0,60481.0,0.002632]
[1728507468555,0.165338,60482.0,60481.0,0.001632]
[1728507468988,0.21844232,60482.0,60481.0,0.002632]
[1728507469285,0.48332998,60482.0,60481.0,0.002632]
[1728507469501,0.48332998,60482.0,60454.0,0.02590079]
[1728507469502,0.60744316,60472.0,60454.0,0.02590079]
[1728507469711,0.85683474,60472.0,60471.0,0.25183844]
[1728507469944,1.20928155,60472.0,60471.0,0.25183844]
[1728507470146,0.60334137,60472.0,60471.0,0.25183844]
[1728507470359,0.64871123,60472.0,60471.0,0.004052]
[1728507470605,0.60334137,60472.0,60471.0,0.004052]
[1728507471032,0.25390373,60472.0,60471.0,0.004052]
[1728507471255,0.25379446,60472.0,60471.0,0.004052]
[1728507471452,0.4871179,60472.0,60471.0,0.004052]
[1728507471662,0.39558483,60472.0,60471.0,0.004052]
[1728507471876,0.41962964,60472.0,60471.0,0.004052]
[1728507472309,0.41462964,60472.0,60471.0,0.004052]
[1728507472934,0.42862964,60472.0,60471.0,0.004052]
[1728507473368,0.41462581,60472.0,60471.0,0.004052]
[1728507473813,0.26778817,60472.0,60471.0,0.004052]
[1728507474028,0.26778817,60472.0,60464.0,0.001634]
[1728507474029,0.06342689,60472.0,60465.0,0.43785066]
[1728507474296,0.165384,60465.0,60464.0,0.001634]
[1728507474498,0.21480206,60465.0,60464.0,0.001634]
[1728507476267,0.22880206,60465.0,60464.0,0.001634]
[1728507477339,0.22985609,60465.0,60464.0,0.001634]
[1728507477548,0.21480206,60465.0,60464.0,0.001634]
[1728507478377,0.3756397,60465.0,60464.0,0.001634]
[1728507478601,0.49733996,60465.0,60464.0,0.001634]
[1728507478807,0.49733996,60465.0,60454.0,0.24778644]
[1728507478808,0.165395,60461.0,60454.0,0.24778644]
[1728507479072,0.22988271,60461.0,60454.0,0.24778644]
[1728507479322,0.39072035,60461.0,60454.0,0.24778644]
[1728507479522,0.165412,60455.0,60454.0,0.24778644]
[1728507479725,0.496224,60457.0,60456.0,0.24778644]
[1728507479934,0.55624864,60457.0,60446.0,0.001634]
[1728507480146,0.330841,60452.0,60446.0,0.001634]
[1728507480357,0.24778644,60473.0,60446.0,0.001634]
[1728507480358,0.165434,60447.0,60446.0,0.001634]
[1728507480580,0.30262586,60447.0,60446.0,0.001634]
[1728507480817,0.23003005,60447.0,60446.0,0.001634]
[1728507481454,0.06459605,60447.0,60446.0,0.001634]
[1728507481664,0.04952605,60447.0,60446.0,0.001634]
[1728507482119,0.07464168,60447.0,60446.0,0.32790764]
[1728507482326,0.07464168,60447.0,60446.0,0.45590764]
[1728507482327,0.00768931,60447.0,60446.0,0.45590764]
[1728507482800,0.02511563,60463.0,60461.0,0.1]
[1728507483031,0.24778644,60464.0,60463.0,0.60324066]
[1728507483253,0.24778644,60487.0,60463.0,0.60324066]
[1728507483254,0.02511563,60474.0,60469.0,0.330745]
[1728507483530,0.24778644,60487.0,60463.0,0.7796883]
[1728507483531,0.02516941,60477.0,60471.0,0.330735]
[1728507483747,0.0764,60512.0,60481.0,0.265341]
[1728507483748,0.24778644,60486.0,60481.0,0.265341]
[1728507483947,0.24778644,60485.0,60481.0,0.52457864]
[1728507484163,0.02516941,60493.0,60481.0,0.52457864]
[1728507484164,0.24778644,60493.0,60481.0,0.53157864]
[1728507484374,0.01034348,60492.0,60481.0,0.53157864]
[1728507484580,0.24778644,60501.0,60481.0,0.53157864]
[1728507484581,0.02516941,60500.0,60481.0,0.53157864]
[1728507484838,0.01034269,60499.0,60481.0,0.53157864]
[1728507485048,0.01034269,60498.0,60481.0,0.53157864]
[1728507485260,0.01034269,60497.0,60481.0,0.53157864]
[1728507485470,0.24778644,60501.0,60481.0,0.52457864]
[1728507485471,0.24778644,60494.0,60481.0,0.52457864]
[1728507485742,0.24778644,60501.0,60481.0,0.53157864]
[1728507485949,0.002636,60482.0,60481.0,0.50457864]
[1728507486596,0.0119806,60482.0,60481.0,0.32617864]
[1728507486804,0.0119806,60482.0,60481.0,0.32917864]
[1728507486805,0.0129806,60482.0,60481.0,0.32917864]
[1728507487691,0.002636,60482.0,60481.0,0.32917864]
[1728507487904,0.002636,60482.0,60481.0,0.42917864]
[1728507488126,0.001636,60482.0,60481.0,0.1]
[1728507488350,0.0119805,60482.0,60481.0,0.002]
[1728507488781,0.0119805,60482.0,60481.0,0.167341]
[1728507488990,0.0119805,60482.0,60481.0,0.165341]
[1728507489203,0.165345,60480.0,60475.0,0.1]
[1728507489425,0.165345,60480.0,60474.0,0.165359]
[1728507489426,0.02516941,60486.0,60477.0,0.24778644]
[1728507489663,0.001,60482.0,60476.0,0.16083764]
[1728507489879,0.02616941,60482.0,60481.0,0.165341]
[1728507490087,0.001,60482.0,60481.0,0.165341]
[1728507490301,0.001,60482.0,60481.0,0.32617864]
[1728507490929,0.001,60482.0,60481.0,0.165341]
[1728507491146,0.001636,60482.0,60481.0,0.165341]
[1728507491370,0.001636,60482.0,60479.0,0.93388666]
[1728507491587,0.001636,60482.0,60475.0,0.332713]
[1728507491588,0.165341,60481.0,60476.0,0.1]
[1728507491803,0.001636,60482.0,60477.0,0.24778644]
[1728507491804,0.02680541,60482.0,60477.0,0.24778644]
[1728507492028,0.02516941,60479.0,60477.0,0.6856371]
[1728507492246,0.001636,60482.0,60477.0,0.6856371]
[1728507492247,0.02418626,60478.0,60477.0,0.6856371]
[1728507492497,0.02418626,60478.0,60477.0,0.7640403]
[1728507492692,0.02418626,60478.0,60477.0,1.1362403]
[1728507492948,0.02418626,60478.0,60477.0,1.1312403]
[1728507493152,0.02418626,60478.0,60477.0,0.9448403]
[1728507494456,0.007636,60482.0,60481.0,0.265341]
[1728507494457,0.001636,60482.0,60481.0,0.265341]
[1728507494673,0.04093045,60482.0,60481.0,0.42617864]
[1728507494899,0.04093045,60482.0,60481.0,0.44917864]
[1728507495108,0.04093045,60482.0,60481.0,0.42617864]
[1728507496215,0.04193045,60482.0,60481.0,0.42817864]
[1728507496429,0.0419192,60482.0,60481.0,0.42817864]
[1728507496637,0.0419192,60482.0,60481.0,0.7118045]
[1728507497057,0.01774925,60482.0,60481.0,0.7118045]
[1728507497478,0.01774925,60482.0,60481.0,0.7328045]
[1728507497686,0.01674925,60482.0,60481.0,0.7328045]
[1728507497893,0.01774925,60482.0,60481.0,0.7358045]
[1728507498335,0.01034387,60493.0,60481.0,0.5724635]
[1728507498540,0.24778644,60497.0,60495.0,0.165302]
[1728507498783,0.01034387,60504.0,60496.0,0.24778644]
[1728507498784,0.02519336,60504.0,60496.0,0.24778644]
[1728507498981,0.65069477,60521.0,60496.0,0.24778644]
[1728507498982,0.24778644,60513.0,60505.0,0.330547]
[1728507499194,0.01034174,60512.0,60511.0,0.165259]
[1728507499423,0.165244,60517.0,60512.0,0.165255]
[1728507499642,0.165244,60517.0,60498.0,0.005]
[1728507499643,0.16526,60511.0,60506.0,0.165272]
[1728507499853,0.165254,60513.0,60508.0,0.165267]
[1728507500086,0.02519336,60526.0,60512.0,0.28362586]
[1728507500332,0.02519336,60526.0,60521.0,0.16523]
[1728507500333,0.165219,60526.0,60521.0,0.16523]
[1728507500536,0.165218,60526.0,60525.0,0.28362586]
[1728507500743,0.330426,60528.0,60525.0,0.28362586]
[1728507500744,0.165214,60528.0,60525.0,0.28362586]
[1728507501219,0.331235,60530.0,60526.0,0.165217]
[1728507501220,0.000817,60530.0,60526.0,0.165217]
[1728507501428,0.000817,60530.0,60529.0,0.16521]
[1728507501652,0.000817,60530.0,60521.0,0.001]
[1728507501879,0.165225,60524.0,60522.0,0.24778644]
[1728507502082,0.000817,60530.0,60510.0,0.28362586]
[1728507502083,0.49126064,60529.0,60510.0,0.28362586]
[1728507502286,0.165245,60516.0,60505.0,0.28362586]
[1728507502505,0.330478,60519.0,60510.0,0.28362586]
[1728507502713,0.165245,60516.0,60511.0,0.43690117]
[1728507502928,0.330466,60521.0,60505.0,0.330548]
[1728507502929,0.330468,60521.0,60505.0,0.43690117]
[1728507503150,0.330468,60521.0,60500.0,0.0812]
[1728507503151,0.165242,60517.0,60516.0,0.24778644]
[1728507503352,0.03019336,60525.0,60505.0,0.330546]
[1728507503353,0.330467,60521.0,60505.0,0.330546]
[1728507503561,0.22319336,60527.0,60503.0,0.43690117]
[1728507503562,0.22319336,60527.0,60509.0,0.00330494]
[1728507503776,0.165252,60514.0,60505.0,0.330546]
[1728507503994,0.16524,60518.0,60511.0,0.24778644]
[1728507504215,0.02519336,60526.0,60520.0,0.165233]
[1728507504438,0.01034052,60526.0,60522.0,0.43690117]
[1728507504639,0.16521,60529.0,60522.0,0.43690117]
[1728507504906,0.013,60529.0,60528.0,0.165212]
[1728507505318,0.166024,60530.0,60525.0,0.165219]
[1728507505521,0.000817,60530.0,60522.0,0.43690117]
[1728507505732,0.000817,60530.0,60529.0,0.16521]
[1728507505936,0.000817,60530.0,60519.0,0.1]
[1728507506143,0.000817,60530.0,60522.0,0.24778644]
[1728507506353,0.000817,60530.0,60528.0,0.001]
[1728507507001,0.000817,60530.0,60529.0,0.16521]
[1728507507218,0.000817,60530.0,60528.0,0.166212]
[1728507507422,0.000817,60530.0,60529.0,0.16521]
[1728507508103,0.012817,60530.0,60521.0,0.330461]
[1728507509174,0.330433,60527.0,60522.0,0.24778644]
[1728507509411,0.000817,60530.0,60523.0,0.24778644]
[1728507509624,0.000817,60530.0,60519.0,0.1]
[1728507509625,0.330426,60528.0,60519.0,0.1]
[1728507509848,0.02411488,60527.0,60520.0,0.24778644]
[1728507510056,0.02411488,60527.0,60526.0,0.165218]
[1728507510286,0.02411488,60527.0,60522.0,0.165227]
[1728507510287,0.165215,60527.0,60522.0,0.165227]
[1728507510530,0.165215,60527.0,60523.0,0.165225]
[1728507510531,0.01507041,60526.0,60523.0,0.165225]
[1728507510968,0.01507041,60525.0,60524.0,0.165223]
[1728507511394,0.0391836,60525.0,60524.0,0.166223]
[1728507512007,0.0391836,60525.0,60524.0,0.165223]
[1728507512211,0.0451836,60525.0,60524.0,0.166223]
[1728507512619,0.0391836,60525.0,60524.0,0.165223]
[1728507513035,0.0491836,60525.0,60524.0,0.166223]
[1728507514277,0.04952176,60525.0,60524.0,0.165223]
[1728507514495,0.0391836,60525.0,60524.0,0.165223]
[1728507514703,0.0451836,60525.0,60524.0,0.76396181]
[1728507514955,0.0451836,60525.0,60524.0,0.166223]
[1728507515168,0.0391836,60525.0,60524.0,0.165223]
[1728507515374,0.04952176,60525.0,60524.0,0.165223]
[1728507515596,0.0491836,60525.0,60524.0,0.166223]
[1728507515805,0.05952176,60525.0,60524.0,0.166223]
[1728507516046,0.05952176,60525.0,60511.0,0.24778644]
[1728507516047,0.04952176,60525.0,60511.0,0.24778644]
[1728507516263,0.165232,60521.0,60518.0,0.24778644]
[1728507516478,0.04952176,60520.0,60518.0,0.24778644]
[1728507516680,0.04952176,60519.0,60513.0,0.330502]
[1728507516882,0.165232,60521.0,60517.0,0.165241]
[1728507517094,0.165232,60521.0,60516.0,0.330489]
[1728507517095,0.04961138,60518.0,60516.0,0.330489]
[1728507517304,0.02517444,60520.0,60517.0,0.165242]
[1728507517508,0.02517444,60520.0,60515.0,0.165246]
[1728507517509,0.04961384,60519.0,60515.0,0.165246]
[1728507517722,0.04961384,60518.0,60516.0,0.165245]
[1728507517932,0.04961814,60517.0,60515.0,0.330495]
[1728507518139,0.02517444,60520.0,60515.0,0.330495]
[1728507518348,0.07480054,60519.0,60518.0,0.165239]
[1728507518562,0.0496261,60519.0,60518.0,0.165239]
[1728507518772,0.0496261,60519.0,60518.0,0.88413273]
[1728507518976,0.0496261,60519.0,60518.0,0.86297781]
[1728507519475,0.0496261,60519.0,60518.0,0.89097781]
[1728507519691,0.03928684,60519.0,60518.0,1.19519881]
[1728507519931,0.02517444,60534.0,60528.0,0.165212]
[1728507520205,0.24942244,60539.0,60529.0,0.42604764]
[1728507520425,0.01593891,60530.0,60529.0,0.44904764]
[1728507522176,0.01593891,60530.0,60529.0,0.89562864]
[1728507522389,0.01593891,60530.0,60529.0,0.62902664]
[1728507522599,0.01593891,60530.0,60529.0,0.56310264]
[1728507522818,0.000817,60530.0,60529.0,0.56810264]
[1728507523234,0.000817,60530.0,60529.0,0.56310264]
[1728507523488,0.01594995,60530.0,60529.0,0.56310264]
[1728507523754,0.01594995,60530.0,60529.0,0.57010264]
[1728507523959,0.000817,60530.0,60529.0,0.57010264]
[1728507524367,0.01595266,60530.0,60529.0,0.57010264]
[1728507524569,0.01595266,60530.0,60529.0,0.85120618]
[1728507525002,0.01595266,60530.0,60529.0,0.84620618]
[1728507525251,0.01595266,60530.0,60529.0,0.73715118]
[1728507525523,0.04117396,60530.0,60529.0,0.34443658]
[1728507525760,0.05150966,60530.0,60529.0,0.34443658]
[1728507525981,0.05050966,60530.0,60529.0,0.33443658]
[1728507526191,0.05050966,60530.0,60529.0,0.16521]
[1728507526406,0.05150966,60530.0,60529.0,0.01]
[1728507526659,0.01696023,60530.0,60529.0,0.17521]
[1728507526907,0.06566944,60530.0,60529.0,0.16521]
[1728507528463,0.08993932,60530.0,60529.0,0.16521]
[1728507528877,0.06566944,60530.0,60529.0,0.16521]
[1728507529088,0.08993949,60530.0,60529.0,0.16521]
[1728507529306,0.06566944,60530.0,60529.0,0.3293514]
[1728507529517,0.05352621,60530.0,60529.0,0.45604764]
[1728507529724,0.05352621,60530.0,60529.0,0.56606164]
[1728507529937,0.003817,60530.0,60529.0,0.56606164]
[1728507530148,0.0402674,60530.0,60529.0,0.56606164]
[1728507530360,0.0402674,60530.0,60529.0,0.57267164]
[1728507530566,0.0402674,60530.0,60529.0,0.57067164]
[1728507530796,0.001636,60539.0,60538.0,0.270185]
[1728507531016,0.001636,60539.0,60538.0,0.73712618]
[1728507531483,0.001636,60539.0,60538.0,0.70912618]
[1728507531697,0.001636,60539.0,60538.0,0.42602264]
[1728507532340,0.002636,60539.0,60538.0,0.71812618]
[1728507532780,0.001636,60539.0,60538.0,0.70912618]
[1728507533646,0.001636,60539.0,60538.0,0.71112618]
[1728507534966,0.001636,60539.0,60538.0,0.165185]
[1728507535267,0.01680581,60539.0,60534.0,0.1]
[1728507535471,0.166818,60539.0,60538.0,0.002]
[1728507535710,0.18198428,60539.0,60538.0,0.002]
[1728507535917,0.18198428,60539.0,60525.0,0.00825355]
[1728507535918,0.330387,60535.0,60525.0,0.00825355]
[1728507536102,0.165193,60535.0,60534.0,0.24778644]
[1728507536336,0.165211,60529.0,60526.0,0.24778644]
[1728507536588,0.01516538,60528.0,60526.0,0.24778644]
[1728507536846,0.01516538,60528.0,60525.0,0.17347155]
[1728507536847,0.01516538,60527.0,60525.0,0.00825355]
[1728507537051,0.330411,60531.0,60525.0,0.00825355]
[1728507537052,0.165212,60529.0,60526.0,0.24778644]
[1728507537272,0.0151656,60528.0,60525.0,0.00825355]
[1728507537493,0.330401,60533.0,60526.0,0.41300444]
[1728507537494,0.0151656,60527.0,60526.0,0.41300444]
[1728507537697,0.0151656,60527.0,60525.0,0.00825355]
[1728507537913,0.0151656,60526.0,60525.0,0.00825355]
[1728507538356,0.0151656,60526.0,60525.0,0.17347355]
[1728507538564,0.0151656,60526.0,60525.0,0.16522]
[1728507539241,0.0151656,60526.0,60525.0,0.16622]
[1728507539519,0.005,60528.0,60525.0,0.16622]
[1728507539520,0.005,60528.0,60527.0,0.165215]
[1728507539756,0.166819,60539.0,60535.0,0.165192]
[1728507539988,0.166819,60539.0,60533.0,0.330394]
[1728507539989,0.01516781,60538.0,60536.0,0.16519]
[1728507540237,0.001636,60539.0,60531.0,0.330408]
[1728507540238,0.01516781,60537.0,60531.0,0.330408]
[1728507540472,0.001636,60539.0,60530.0,0.28310354]
[1728507540473,0.01516781,60536.0,60534.0,0.330391]
[1728507540720,0.01516781,60536.0,60530.0,0.28310354]
[1728507540721,0.001636,60539.0,60535.0,0.330386]
[1728507540979,0.001636,60539.0,60538.0,0.165185]
[1728507541230,0.01680296,60539.0,60538.0,0.165185]
[1728507542211,0.03080296,60539.0,60538.0,0.165185]
[1728507542448,0.015636,60539.0,60538.0,0.42932606]
[1728507542688,0.015636,60539.0,60538.0,0.45602264]
[1728507542689,0.001636,60539.0,60538.0,0.45602264]
[1728507542981,0.013636,60539.0,60538.0,0.45702264]
[1728507543215,0.013636,60539.0,60538.0,0.99278564]
[1728507543421,0.001636,60539.0,60538.0,0.98978564]
[1728507543627,0.001636,60539.0,60538.0,0.46102264]
[1728507543851,0.002636,60539.0,60538.0,0.46102264]
[1728507544062,0.002636,60539.0,60538.0,0.43302264]
[1728507544491,0.002636,60539.0,60538.0,0.172185]
[1728507544706,0.01780401,60539.0,60538.0,0.172185]
[1728507545120,0.01680401,60539.0,60538.0,0.165185]
[1728507545992,0.01780401,60539.0,60538.0,0.172185]
[1728507546408,0.01680401,60539.0,60538.0,0.165185]
[1728507546865,0.01680401,60539.0,60538.0,0.16848817]
[1728507547278,0.01780401,60539.0,60538.0,0.32932581]
[1728507547476,0.01780401,60539.0,60538.0,0.32602264]
[1728507547897,0.01780401,60539.0,60538.0,0.42602264]
[1728507548102,0.002636,60539.0,60538.0,0.42602264]
[1728507548308,0.002636,60539.0,60538.0,0.43102264]
[1728507548514,0.002636,60539.0,60538.0,0.45402264]
[1728507548716,0.001636,60539.0,60538.0,0.45402264]
[1728507549047,0.001636,60539.0,60538.0,0.61179864]
[1728507549279,0.001636,60539.0,60538.0,0.59268764]
[1728507549703,0.002636,60539.0,60538.0,0.60168764]
[1728507549905,0.002636,60539.0,60538.0,0.43302264]
[1728507550266,0.001636,60539.0,60538.0,0.42602264]
[1728507550518,0.002636,60539.0,60538.0,0.43302264]
[1728507551145,0.002636,60539.0,60538.0,0.007]
[1728507551429,0.01782668,60539.0,60538.0,0.172185]
[1728507551941,0.01682668,60539.0,60538.0,0.166002]
[1728507552174,0.01682668,60539.0,60538.0,0.005817]
[1728507552456,0.2981453,60539.0,60538.0,0.005817]
[1728507552663,0.2981453,60539.0,60526.0,0.24778644]
[1728507552664,0.330394,60534.0,60526.0,0.24778644]
[1728507552851,0.165196,60534.0,60533.0,0.24778644]
[1728507552997,0.165215,60527.0,60526.0,0.24778644]
[1728507553194,0.18039965,60527.0,60526.0,0.24778644]
[1728507553420,0.18039965,60527.0,60518.0,0.330475]
[1728507553421,0.330437,60526.0,60516.0,0.330486]
[1728507553610,0.01518465,60525.0,60524.0,0.165223]
[1728507553810,0.01518465,60525.0,60522.0,0.165227]
[1728507554022,0.01518465,60524.0,60522.0,0.165227]
[1728507554201,0.165206,60531.0,60523.0,0.33045]
[1728507554430,0.01517825,60530.0,60529.0,0.165207]
[1728507554627,0.01517825,60530.0,60528.0,0.16521]
[1728507554838,0.01517857,60529.0,60526.0,0.165216]
[1728507555046,0.330384,60536.0,60528.0,0.165212]
[1728507555258,0.16247364,60539.0,60529.0,0.165208]
[1728507555259,0.01517863,60535.0,60529.0,0.165208]
[1728507555469,0.01517863,60534.0,60530.0,0.165206]
[1728507555680,0.18037763,60533.0,60528.0,0.00330391]
[1728507555888,0.01517863,60532.0,60531.0,0.165204]
[1728507556718,0.001636,60539.0,60538.0,0.165185]
[1728507556925,0.01681453,60539.0,60538.0,0.165185]
[1728507557143,0.001636,60539.0,60538.0,0.165185]
[1728507557356,0.001636,60539.0,60538.0,0.16848822]
[1728507557558,0.001636,60539.0,60538.0,0.32932586]
[1728507557765,0.001636,60539.0,60538.0,0.32602264]
[1728507558392,0.015636,60539.0,60538.0,0.32602264]
[1728507558832,0.015636,60539.0,60538.0,0.42602264]
[1728507559092,0.001636,60539.0,60538.0,0.44902264]
[1728507559362,0.004636,60539.0,60538.0,0.44902264]
[1728507559631,0.004636,60539.0,60538.0,0.45602264]
[1728507559873,0.001636,60539.0,60538.0,0.45602264]
[1728507560132,0.002636,60539.0,60538.0,0.45902264]
[1728507560860,0.002636,60539.0,60538.0,0.45702264]
[1728507561357,0.001636,60539.0,60538.0,0.45602264]
[1728507561822,0.002636,60539.0,60538.0,0.45902264]
[1728507562291,0.002636,60539.0,60538.0,0.45602264]
[1728507562292,0.001636,60539.0,60538.0,0.45602264]
[1728507562529,0.002636,60539.0,60538.0,0.45902264]
[1728507563785,0.002636,60539.0,60538.0,0.45702264]
[1728507564427,0.001636,60539.0,60538.0,0.45402264]
[1728507564852,0.001636,60539.0,60538.0,0.43102264]
[1728507565273,0.002636,60539.0,60538.0,0.43402264]
[1728507565494,0.002636,60539.0,60538.0,0.42902264]
[1728507565721,0.002636,60539.0,60538.0,0.003]
[1728507565948,0.002636,60539.0,60527.0,0.005]
[1728507565949,0.001636,60539.0,60527.0,0.330428]
[1728507566182,0.165198,60534.0,60533.0,0.24778644]
[1728507566424,0.165195,60535.0,60533.0,0.24778644]
[1728507566629,0.165188,60537.0,60533.0,0.165197]
[1728507566836,0.002636,60539.0,60533.0,0.165197]
[1728507567041,0.34554353,60538.0,60529.0,0.330418]
[1728507567254,0.002636,60539.0,60530.0,0.00330377]
[1728507567471,0.01517723,60538.0,60530.0,0.00330377]
[1728507567678,0.001636,60539.0,60533.0,0.24778644]
[1728507567885,0.001636,60539.0,60538.0,0.165185]
[1728507567886,0.004636,60539.0,60538.0,0.165185]
[1728507568094,0.004636,60539.0,60538.0,0.16848832]
[1728507568347,0.001636,60539.0,60538.0,0.16848832]
[1728507568813,0.001636,60539.0,60538.0,0.32602264]
[1728507569227,0.001636,60539.0,60538.0,0.42602264]
[1728507569440,0.001636,60539.0,60538.0,0.44902264]
[1728507569652,0.002636,60539.0,60538.0,0.68455564]
[1728507569861,0.002636,60539.0,60538.0,0.68655564]
[1728507570070,0.002636,60539.0,60538.0,0.68455564]
[1728507570719,0.001636,60539.0,60538.0,0.67028564]
[1728507570920,0.001636,60539.0,60538.0,0.61393064]
[1728507571142,0.002636,60539.0,60538.0,0.42902264]
[1728507571585,0.001636,60539.0,60538.0,0.42602264]
[1728507572020,0.002636,60539.0,60538.0,0.42902264]
[1728507572461,0.001636,60539.0,60538.0,0.42602264]
[1728507572688,0.001636,60539.0,60538.0,0.42802264]
[1728507574223,0.001636,60539.0,60538.0,0.32602264]
[1728507574427,0.002636,60539.0,60538.0,0.32902264]
[1728507574882,0.001636,60539.0,60538.0,0.32602264]
[1728507575535,0.001636,60539.0,60538.0,0.165185]
[1728507576176,0.001636,60539.0,60538.0,0.166002]
[1728507576802,0.166818,60539.0,60538.0,0.000817]
[1728507577263,0.35968688,60539.0,60538.0,0.000817]
[1728507577497,0.32865564,60539.0,60538.0,0.003817]
[1728507577720,0.165215,60527.0,60526.0,0.24778644]
[1728507577936,0.18039503,60527.0,60526.0,0.24778644]
[1728507578141,0.18039484,60527.0,60526.0,0.24778644]
[1728507578353,0.18039484,60527.0,60523.0,0.000817]
[1728507578354,0.165223,60524.0,60523.0,0.000817]
[1728507578567,0.18039786,60524.0,60523.0,0.000817]
[1728507578788,0.183,60529.0,60523.0,0.000817]
[1728507578789,0.330425,60528.0,60523.0,0.000817]
[1728507579009,0.165223,60524.0,60523.0,0.000817]
[1728507579451,0.18039537,60524.0,60523.0,0.000817]
[1728507579650,0.165223,60524.0,60523.0,0.000817]
[1728507579860,0.18039546,60524.0,60523.0,0.000817]
[1728507580311,0.3412331,60524.0,60523.0,0.000817]
[1728507580726,0.46544291,60524.0,60523.0,0.000817]
[1728507580934,0.46044291,60524.0,60523.0,0.000817]
[1728507581167,0.46544291,60524.0,60523.0,0.000817]
[1728507581618,0.47944291,60524.0,60523.0,0.000817]
[1728507582086,0.46544291,60524.0,60523.0,0.000817]
[1728507582306,0.54474291,60524.0,60523.0,0.000817]
[1728507582520,0.55874291,60524.0,60523.0,0.000817]
[1728507582724,0.55874291,60524.0,60511.0,0.24778644]
[1728507582725,0.165256,60512.0,60511.0,0.24778644]
[1728507582931,0.18042846,60512.0,60511.0,0.24778644]